{"text_format":"1","workbook":"xlsx","n_sheets":2,"sheets":["Data","設定"],"not_rendered":{"charts":1,"images":4,"macros":1,"external_links":0,"defined_names":3,"comments":0,"pivot_tables":0},"unopened":[],"bounds":{"document_bytes":16777216,"sheet_cells":100000,"rows_first":2000,"rows_last":500,"rows_between":2000,"halvings":0,"cell_chars":16384,"cell_head_chars":4096},"cells_cut":0,"cells_raw":0,"read":"whole","date_system":"1900"}

{"sheet":"Data","index":0,"n_rows":35,"n_cols":19,"rows_kept":35,"cut":false,"hidden":false,"merged":[]}
[]
[null,null,null,null,null,null,null,null,null,null,null,null,null,null,null,null,null,"使用COM No",4]
[]
[null,null,null,null,null,null,null,null,null,null,null,null,null,null,null,null,null,"COM名","No"]
[null,null,null,null,null,null,null,null,null,null,null,null,null,null,null,null,null,{"$f":"IF(設定!D2=\"\",\"\",設定!D2)","v":""},{"$f":"設定!F2","v":""}]
[null,null,null,null,null,null,null,null,null,null,null,null,null,null,null,null,null,{"$f":"IF(設定!D3=\"\",\"\",設定!D3)","v":""},{"$f":"設定!F3","v":""}]
[null,null,null,null,null,null,null,null,null,null,null,null,null,null,null,null,null,{"$f":"IF(設定!D4=\"\",\"\",設定!D4)","v":""},{"$f":"設定!F4","v":""}]
[null,null,null,null,null,null,null,null,null,null,null,null,null,null,null,null,null,{"$f":"IF(設定!D5=\"\",\"\",設定!D5)","v":""},{"$f":"設定!F5","v":""}]
[null,null,null,null,null,null,null,null,null,null,null,null,null,null,null,null,null,{"$f":"IF(設定!D6=\"\",\"\",設定!D6)","v":""},{"$f":"設定!F6","v":""}]
[null,null,null,null,null,null,null,null,null,null,null,null,null,null,null,null,null,{"$f":"IF(設定!D7=\"\",\"\",設定!D7)","v":""},{"$f":"設定!F7","v":""}]
[null,null,null,null,null,null,null,null,null,null,null,null,null,null,null,null,null,{"$f":"IF(設定!D8=\"\",\"\",設定!D8)","v":""},{"$f":"設定!F8","v":""}]
[null,null,null,null,null,null,null,null,null,null,null,null,null,null,null,null,null,{"$f":"IF(設定!D9=\"\",\"\",設定!D9)","v":""},{"$f":"設定!F9","v":""}]
[null,null,null,null,null,null,null,null,null,null,null,null,null,null,null,null,null,{"$f":"IF(設定!D10=\"\",\"\",設定!D10)","v":""},{"$f":"設定!F10","v":""}]
[null,null,null,null,null,null,null,null,null,null,null,null,null,null,null,null,null,{"$f":"IF(設定!D11=\"\",\"\",設定!D11)","v":""},{"$f":"設定!F11","v":""}]
[null,null,null,null,null,null,null,null,null,null,null,null,null,null,null,null,null,{"$f":"IF(設定!D12=\"\",\"\",設定!D12)","v":""},{"$f":"設定!F12","v":""}]
[null,null,null,null,null,null,null,null,null,null,null,null,null,null,null,null,null,{"$f":"IF(設定!D13=\"\",\"\",設定!D13)","v":""},{"$f":"設定!F13","v":""}]
[null,null,null,null,null,null,null,null,null,null,null,null,null,null,null,null,null,{"$f":"IF(設定!D14=\"\",\"\",設定!D14)","v":""},{"$f":"設定!F14","v":""}]
[null,null,null,null,null,null,null,null,null,null,null,null,null,null,null,null,null,{"$f":"IF(設定!D15=\"\",\"\",設定!D15)","v":""},{"$f":"設定!F15","v":""}]
[null,null,null,null,null,null,null,null,null,null,null,null,null,null,null,null,null,{"$f":"IF(設定!D16=\"\",\"\",設定!D16)","v":""},{"$f":"設定!F16","v":""}]
[null,null,null,null,null,null,null,null,null,null,null,null,null,null,null,null,null,{"$f":"IF(設定!D17=\"\",\"\",設定!D17)","v":""},{"$f":"設定!F17","v":""}]
[null,null,null,null,null,null,null,null,null,null,null,null,null,null,null,null,null,{"$f":"IF(設定!D18=\"\",\"\",設定!D18)","v":""},{"$f":"設定!F18","v":""}]
[null,null,null,null,null,null,null,null,null,null,null,null,null,null,null,null,null,{"$f":"IF(設定!D19=\"\",\"\",設定!D19)","v":""},{"$f":"設定!F19","v":""}]
[null,null,null,null,null,null,null,null,null,null,null,null,null,null,null,null,null,{"$f":"IF(設定!D20=\"\",\"\",設定!D20)","v":""},{"$f":"設定!F20","v":""}]
[null,null,null,null,null,null,null,null,null,null,null,null,null,null,null,null,null,{"$f":"IF(設定!D21=\"\",\"\",設定!D21)","v":""},{"$f":"設定!F21","v":""}]
[null,null,null,null,null,null,null,null,null,null,null,null,null,null,null,null,null,{"$f":"IF(設定!D22=\"\",\"\",設定!D22)","v":""},{"$f":"設定!F22","v":""}]
[null,null,null,null,null,null,null,null,null,null,null,null,null,null,null,null,null,{"$f":"IF(設定!D23=\"\",\"\",設定!D23)","v":""},{"$f":"設定!F23","v":""}]
[null,null,null,null,null,null,null,null,null,null,null,null,null,null,null,null,null,{"$f":"IF(設定!D24=\"\",\"\",設定!D24)","v":""},{"$f":"設定!F24","v":""}]
[null,null,null,null,null,null,null,null,null,null,null,null,null,null,null,null,null,{"$f":"IF(設定!D25=\"\",\"\",設定!D25)","v":""},{"$f":"設定!F25","v":""}]
[null,null,null,null,null,null,null,null,null,null,null,null,null,null,null,null,null,{"$f":"IF(設定!D26=\"\",\"\",設定!D26)","v":""},{"$f":"設定!F26","v":""}]
[null,null,null,null,null,null,null,null,null,null,null,null,null,null,null,null,null,{"$f":"IF(設定!D27=\"\",\"\",設定!D27)","v":""},{"$f":"設定!F27","v":""}]
[null,null,null,null,null,null,null,null,null,null,null,null,null,null,null,null,null,{"$f":"IF(設定!D28=\"\",\"\",設定!D28)","v":""},{"$f":"設定!F28","v":""}]
[null,null,null,null,null,null,null,null,null,null,null,null,null,null,null,null,null,{"$f":"IF(設定!D29=\"\",\"\",設定!D29)","v":""},{"$f":"設定!F29","v":""}]
[null,null,null,null,null,null,null,null,null,null,null,null,null,null,null,null,null,{"$f":"IF(設定!D30=\"\",\"\",設定!D30)","v":""},{"$f":"設定!F30","v":""}]
[null,null,null,null,null,null,null,null,null,null,null,null,null,null,null,null,null,{"$f":"IF(設定!D31=\"\",\"\",設定!D31)","v":""},{"$f":"設定!F31","v":""}]
[null,null,null,null,null,null,null,null,null,null,null,null,null,null,null,null,null,{"$f":"IF(設定!D32=\"\",\"\",設定!D32)","v":""},{"$f":"設定!F32","v":""}]

{"sheet":"設定","index":1,"n_rows":32,"n_cols":6,"rows_kept":32,"cut":false,"hidden":false,"merged":[]}
["設定項目","値",null,"COM名（取得）","No","No"]
["RunFlug",false,null,null,{"$f":"VALUE(LEFT(RIGHT(D2,LEN(D2)-FIND(\"COM\",D2)-2),LEN(RIGHT(D2,LEN(D2)-FIND(\"COM\",D2)-2))-1))","v":{"$error":"#VALUE!"}},{"$f":"IF(ISERR(E2),\"\",E2)","v":""}]
["COM",null,null,null,{"$f":"VALUE(LEFT(RIGHT(D3,LEN(D3)-FIND(\"COM\",D3)-2),LEN(RIGHT(D3,LEN(D3)-FIND(\"COM\",D3)-2))-1))","v":{"$error":"#VALUE!"}},""]
[null,null,null,null,{"$error":"#VALUE!"},""]
[null,null,null,null,{"$error":"#VALUE!"},""]
[null,null,null,null,{"$error":"#VALUE!"},""]
[null,null,null,null,{"$error":"#VALUE!"},""]
[null,null,null,null,{"$error":"#VALUE!"},""]
[null,null,null,null,{"$error":"#VALUE!"},""]
[null,null,null,null,{"$error":"#VALUE!"},""]
[null,null,null,null,{"$error":"#VALUE!"},""]
[null,null,null,null,{"$error":"#VALUE!"},""]
[null,null,null,null,{"$error":"#VALUE!"},""]
[null,null,null,null,{"$error":"#VALUE!"},""]
[null,null,null,null,{"$error":"#VALUE!"},""]
[null,null,null,null,{"$error":"#VALUE!"},""]
[null,null,null,null,{"$error":"#VALUE!"},""]
[null,null,null,null,{"$error":"#VALUE!"},""]
[null,null,null,null,{"$error":"#VALUE!"},""]
[null,null,null,null,{"$error":"#VALUE!"},""]
[null,null,null,null,{"$error":"#VALUE!"},""]
[null,null,null,null,{"$error":"#VALUE!"},""]
[null,null,null,null,{"$error":"#VALUE!"},""]
[null,null,null,null,{"$error":"#VALUE!"},""]
[null,null,null,null,{"$error":"#VALUE!"},""]
[null,null,null,null,{"$error":"#VALUE!"},""]
[null,null,null,null,{"$error":"#VALUE!"},""]
[null,null,null,null,{"$error":"#VALUE!"},""]
[null,null,null,null,{"$error":"#VALUE!"},""]
[null,null,null,null,{"$error":"#VALUE!"},""]
[null,null,null,null,{"$error":"#VALUE!"},""]
[null,null,null,null,{"$error":"#VALUE!"},""]